fUSD/lending_fUSD_20240104
["ID","MTS","AMOUNT","RATE_DAILY","PERIOD"]
[310154485,1704384657780,-500.0,0.00033423,2]
[310154487,1704384657789,-1667.8,0.00033423,2]
[310154489,1704384657799,-575.28,0.00033423,2]
[310154491,1704384657809,-575.28,0.00033423,2]
[310154493,1704384657819,-500.0,0.00033424,2]
[310154495,1704384657829,-500.0,0.00033424,2]
[310154498,1704384657838,-500.0,0.00033424,2]
[310154500,1704384657847,-500.0,0.00033424,2]
[310154502,1704384657856,-500.0,0.00033424,2]
[310154504,1704384657867,-500.0,0.00033424,2]
[310154506,1704384657877,-500.0,0.00033424,2]
[310154508,1704384657886,-500.0,0.00033424,2]
[310154510,1704384657896,-768.69,0.00033424,2]
[310154512,1704384657906,-589.83,0.00033424,2]
[310154514,1704384657915,-603.66,0.00033424,2]
[310154516,1704384657925,-1000.0,0.00033424,2]
[310154517,1704384657934,-500.0,0.00033424,2]
[310154520,1704384657943,-500.0,0.00033424,2]
[310154522,1704384657954,-599.73,0.00033424,2]
[310154524,1704384657965,-609.87,0.00033424,2]
[310154526,1704384657974,-331.88569048,0.00033424,2]
[310154528,1704384657983,-500.0,0.00033424,2]
[310154530,1704384657992,-500.0,0.00033424,2]
[310154532,1704384658001,-500.0,0.00033424,2]
[310154534,1704384658011,-500.0,0.00033424,2]
[310154536,1704384658020,-500.0,0.00033424,2]
[310154538,1704384658030,-514.16001669,0.00033424,2]
[310154540,1704384658039,-359.68460855,0.00033424,2]
[310154542,1704384658049,-607.88,0.00033424,2]
[310154544,1704384658059,-500.0,0.00033424,2]
[310154546,1704384658070,-500.0,0.00033424,2]
[310154548,1704384658079,-500.0,0.00033424,2]
[310154550,1704384658088,-500.0,0.00033424,2]
[310154552,1704384658098,-500.0,0.00033424,2]
[310154554,1704384658107,-297.46,0.00033424,2]
[310154556,1704384658116,-500.0,0.00033424,2]
[310154558,1704384658126,-500.0,0.00033424,2]
[310154560,1704384658135,-911.18,0.00033424,2]
[310154562,1704384658144,-500.0,0.00033424,2]
[310154564,1704384658155,-500.0,0.00033424,2]
[310154566,1704384658164,-356.98806084,0.00033424,2]
[310154568,1704384658173,-500.0,0.00033424,2]
[310154570,1704384658182,-500.0,0.00033424,2]
[310154572,1704384658191,-500.0,0.00033424,2]
[310154574,1704384658200,-500.0,0.00033424,2]
[310154576,1704384658210,-718.24,0.00033424,2]
[310154578,1704384658219,-690.39,0.00033424,2]
[310154580,1704384658229,-500.0,0.00033424,2]
[310154582,1704384658238,-500.0,0.00033424,2]
[310154584,1704384658247,-712.49,0.00033424,2]
[310154586,1704384658256,-500.0,0.00033424,2]
[310154588,1704384658266,-500.0,0.00033424,2]
[310154590,1704384658275,-500.0,0.00033424,2]
[310154592,1704384658285,-500.0,0.00033424,2]
[310154594,1704384658294,-532.84671432,0.00033424,2]
[310154596,1704384658303,-582.68,0.00033424,2]
[310154598,1704384658314,-500.0,0.00033424,2]
[310154600,1704384658324,-500.0,0.00033424,2]
[310154602,1704384658336,-500.0,0.00033424,2]
[310154604,1704384658347,-500.0,0.00033424,2]
[310154606,1704384658358,-500.0,0.00033424,2]
[310154608,1704384658369,-1117.06,0.00033424,2]
[310154610,1704384658379,-500.0,0.00033424,2]
[310154612,1704384658391,-190.50587149,0.00033424,2]
[310154614,1704384658401,-500.0,0.00033424,2]
[310154616,1704384658412,-500.0,0.00033424,2]
[310154618,1704384658422,-500.0,0.00033424,2]
[310154621,1704384658434,-500.0,0.00033424,2]
[310154622,1704384658445,-585.66,0.00033424,2]
[310154624,1704384658456,-500.0,0.00033424,2]
[310154626,1704384658467,-500.0,0.00033424,2]
[310154629,1704384658478,-789.66,0.00033424,2]
[310154631,1704384658488,-500.0,0.00033424,2]
[310154633,1704384658498,-500.0,0.00033424,2]
[310154635,1704384658508,-500.0,0.00033424,2]
[310154636,1704384658518,-500.0,0.00033424,2]
[310154639,1704384658528,-500.0,0.00033424,2]
[310154640,1704384658537,-500.0,0.00033424,2]
[310154642,1704384658547,-500.0,0.00033424,2]
[310154645,1704384658558,-500.0,0.00033424,2]
[310154647,1704384658571,-500.0,0.00033424,2]
[310154649,1704384658581,-500.0,0.00033424,2]
[310154651,1704384658591,-500.0,0.00033424,2]
[310154653,1704384658601,-500.0,0.00033424,2]
[310154655,1704384658611,-500.0,0.00033424,2]
[310154657,1704384658621,-500.0,0.00033424,2]
[310154659,1704384658630,-500.0,0.00033424,2]
[310154660,1704384658640,-500.0,0.00033424,2]
[310154663,1704384658650,-867.28,0.00033424,2]
[310154665,1704384658661,-764.44,0.00033424,2]
[310154667,1704384658672,-883.27,0.00033424,2]
[310154669,1704384658682,-500.0,0.00033424,2]
[310154671,1704384658691,-500.0,0.00033424,2]
[310154673,1704384658700,-500.0,0.00033424,2]
[310154675,1704384658710,-842.43,0.00033424,2]
[310154677,1704384658720,-500.0,0.00033424,2]
[310154679,1704384658730,-682.97,0.00033424,2]
[310154681,1704384658739,-500.0,0.00033424,2]
[310154683,1704384658749,-500.0,0.00033424,2]
[310154685,1704384658759,-500.0,0.00033424,2]
[310154687,1704384658770,-500.0,0.00033424,2]
[310154689,1704384658780,-500.0,0.00033424,2]
[310154691,1704384658790,-500.0,0.00033424,2]
[310154693,1704384658800,-670.92,0.00033424,2]
[310154695,1704384658810,-500.0,0.00033424,2]
[310154697,1704384658822,-500.0,0.00033424,2]
[310154699,1704384658832,-1005.13,0.00033424,2]
[310154701,1704384658842,-500.0,0.00033424,2]
[310154703,1704384658852,-500.0,0.00033424,2]
[310154705,1704384658861,-1406.92,0.00033424,2]
[310154707,1704384658871,-725.93,0.00033424,2]
[310154709,1704384658882,-500.0,0.00033424,2]
[310154711,1704384658891,-500.0,0.00033424,2]
[310154713,1704384658901,-699.62,0.00033424,2]
[310154715,1704384658910,-1117.49,0.00033424,2]
[310154717,1704384658919,-674.55,0.00033424,2]
[310154719,1704384658928,-500.0,0.00033424,2]
[310154721,1704384658938,-677.2,0.00033424,2]
[310154723,1704384658947,-500.0,0.00033424,2]
[310154725,1704384658957,-500.0,0.00033424,2]
[310154727,1704384658966,-500.0,0.00033424,2]
[310154729,1704384658976,-500.0,0.00033424,2]
[310154730,1704384658986,-500.0,0.00033424,2]
[310154731,1704384658995,-782.63,0.00033424,2]
[310154732,1704384659005,-500.0,0.00033424,2]
[310154733,1704384659015,-500.0,0.00033424,2]
[310154734,1704384659024,-510.31,0.00033424,2]
[310154735,1704384659034,-830.54,0.00033424,2]
[310154736,1704384659043,-901.96,0.00033424,2]
[310154737,1704384659054,-500.0,0.00033424,2]
[310154738,1704384659064,-662.32,0.00033424,2]
[310154739,1704384659074,-500.0,0.00033424,2]
[310154740,1704384659083,-500.0,0.00033424,2]
[310154741,1704384659092,-500.0,0.00033424,2]
[310154742,1704384659102,-1824.67,0.00033424,2]
[310154743,1704384659111,-500.0,0.00033424,2]
[310154744,1704384659120,-931.95,0.00033424,2]
[310154745,1704384659130,-500.0,0.00033424,2]
[310154746,1704384659139,-500.0,0.00033424,2]
[310154747,1704384659149,-500.0,0.00033424,2]
[310154748,1704384659158,-500.0,0.00033424,2]
[310154749,1704384659168,-500.0,0.00033424,2]
[310154750,1704384659177,-654.3,0.00033424,2]
[310154751,1704384659186,-500.0,0.00033424,2]
[310154753,1704384659196,-500.0,0.00033424,2]
[310154755,1704384659205,-500.0,0.00033424,2]
[310154756,1704384659214,-500.0,0.00033424,2]
[310154758,1704384659224,-1130.23,0.00033424,2]
[310154760,1704384659234,-199.94000118,0.00033424,2]
[310154762,1704384659243,-500.0,0.00033424,2]
[310154764,1704384659253,-500.0,0.00033424,2]
[310154766,1704384659263,-559.43,0.00033424,2]
[310154769,1704384659273,-500.0,0.00033424,2]
[310154771,1704384659282,-500.0,0.00033424,2]
[310154773,1704384659292,-1026.82,0.00033424,2]
[310154775,1704384659301,-500.0,0.00033424,2]
[310154776,1704384659313,-500.0,0.00033424,2]
[310154785,1704384659385,-586.09,0.00033424,2]
[310154787,1704384659395,-500.0,0.00033424,2]
[310154789,1704384659405,-574.52,0.00033424,2]
[310154791,1704384659415,-622.68,0.00033424,2]
[310154793,1704384659425,-593.19,0.00033424,2]
[310154795,1704384659433,-633.75,0.00033424,2]
[310154797,1704384659443,-500.0,0.00033424,2]
[310154799,1704384659453,-731.33,0.00033424,2]
[310154801,1704384659462,-756.82,0.00033424,2]
[310154803,1704384659471,-500.0,0.00033424,2]
[310154805,1704384659480,-500.0,0.00033424,2]
[310154807,1704384659488,-500.0,0.00033424,2]
[310154809,1704384659498,-500.0,0.00033424,2]
[310154811,1704384659507,-500.0,0.00033424,2]
[310154813,1704384659516,-812.26,0.00033424,2]
[310154815,1704384659525,-642.48,0.00033424,2]
[310154817,1704384659534,-500.0,0.00033424,2]
[310154819,1704384659544,-500.0,0.00033424,2]
[310154821,1704384659553,-995.06,0.00033424,2]
[310154823,1704384659565,-647.0,0.00033424,2]
[310154825,1704384659574,-1428.61,0.00033424,2]
[310154827,1704384659583,-500.0,0.00033424,2]
[310154829,1704384659592,-737.41,0.00033424,2]
[310154830,1704384659601,-500.0,0.00033424,2]
[310154832,1704384659610,-500.0,0.00033424,2]
[310154835,1704384659619,-719.19,0.00033424,2]
[310154837,1704384659629,-500.0,0.00033424,2]
[310154839,1704384659639,-966.27,0.00033424,2]
[310154840,1704384659647,-500.0,0.00033424,2]
[310154843,1704384659657,-500.0,0.00033424,2]
[310154844,1704384659667,-500.0,0.00033424,2]
[310154846,1704384659677,-708.7,0.00033424,2]
[310154848,1704384659687,-683.25,0.00033424,2]
[310154850,1704384659696,-500.0,0.00033424,2]
[310154853,1704384659707,-1313.57,0.00033424,2]
[310154854,1704384659716,-500.0,0.00033424,2]
[310154856,1704384659725,-537.81,0.00033424,2]
[310154858,1704384659734,-978.7,0.00033424,2]
[310154860,1704384659744,-500.0,0.00033424,2]
[310154862,1704384659753,-500.0,0.00033424,2]
[310154864,1704384659762,-855.47,0.00033424,2]
[310154866,1704384659771,-500.0,0.00033424,2]
[310154868,1704384659780,-500.0,0.00033424,2]
[310154871,1704384659790,-500.0,0.00033424,2]
[310154873,1704384659799,-504.3,0.00033424,2]
[310154874,1704384659809,-758.78,0.00033424,2]
[310154877,1704384659820,-500.0,0.00033424,2]
[310154879,1704384659831,-500.0,0.00033424,2]
[310154881,1704384659840,-500.0,0.00033424,2]
[310154883,1704384659849,-500.0,0.00033424,2]
[310154885,1704384659858,-500.0,0.00033424,2]
[310154887,1704384659867,-500.0,0.00033424,2]
[310154889,1704384659875,-500.0,0.00033424,2]
[310154891,1704384659884,-1007.26,0.00033424,2]
[310154893,1704384659893,-553.50086051,0.00033424,2]
[310154894,1704384659901,-500.0,0.00033424,2]
[310154896,1704384659911,-500.0,0.00033424,2]
[310154898,1704384659919,-500.0,0.00033424,2]
[310154900,1704384659929,-500.0,0.00033424,2]
[310154902,1704384659938,-691.87,0.00033424,2]
[310154905,1704384659948,-944.11,0.00033424,2]
[310154906,1704384659957,-500.0,0.00033424,2]
[310154908,1704384659966,-1634.31,0.00033424,2]
[310154909,1704384659975,-500.0,0.00033424,2]
[310154910,1704384659984,-1332.99,0.00033424,2]
[310154911,1704384659993,-500.0,0.00033424,2]
[310154912,1704384660002,-1233.69,0.00033424,2]
[310154913,1704384660011,-500.0,0.00033424,2]
[310154914,1704384660020,-1754.71,0.00033424,2]
[310154915,1704384660029,-650.36,0.00033424,2]
[310154916,1704384660038,-500.0,0.00033424,2]
[310154917,1704384660047,-628.3094419,0.00033424,2]
[310154918,1704384660056,-602.68,0.00033424,2]
[310154919,1704384660067,-1493.68,0.00033424,2]
[310154921,1704384660076,-500.0,0.00033424,2]
[310154923,1704384660085,-500.0,0.00033424,2]
[310154925,1704384660095,-705.76,0.00033424,2]
[310154927,1704384660104,-1386.7,0.00033424,2]
[310154929,1704384660113,-1253.93,0.00033424,2]
[310154931,1704384660122,-500.0,0.00033424,2]
[310154933,1704384660131,-500.0,0.00033424,2]
[310154935,1704384660141,-712.45,0.00033424,2]
[310154937,1704384660150,-1385.49,0.00033424,2]
[310154939,1704384660159,-719.5,0.00033424,2]
[310154941,1704384660168,-795.9,0.00033424,2]
[310154943,1704384660177,-614.02,0.00033424,2]
[310154945,1704384660186,-500.0,0.00033424,2]
[310154947,1704384660195,-500.0,0.00033424,2]
[310154949,1704384660205,-702.74,0.00033424,2]
[310154951,1704384660214,-2346.06,0.00033424,2]
[310154953,1704384660223,-782.01,0.00033424,2]
[310154955,1704384660233,-1144.21,0.00033424,2]
[310154956,1704384660243,-500.0,0.00033424,2]
[310154958,1704384660253,-825.04,0.00033424,2]
[310154960,1704384660262,-759.74,0.00033424,2]
[310154961,1704384660271,-500.0,0.00033424,2]
[310154962,1704384660281,-591.92,0.00033424,2]
[310154963,1704384660291,-500.0,0.00033424,2]
[310154964,1704384660301,-500.0,0.00033424,2]
[310154965,1704384660310,-1538.71,0.00033424,2]
[310154966,1704384660321,-500.0,0.00033424,2]
[310154967,1704384660331,-1209.37,0.00033424,2]
[310154968,1704384660340,-500.0,0.00033424,2]
[310154969,1704384660353,-1769.02,0.00033424,2]
[310154970,1704384660362,-500.0,0.00033424,2]
[310154971,1704384660372,-500.0,0.00033424,2]
[310154972,1704384660382,-1608.02,0.00033424,2]
[310154973,1704384660420,-1312.71,0.00033424,2]
[310154974,1704384660430,-500.0,0.00033424,2]
[310154976,1704384660440,-500.0,0.00033424,2]
[310154978,1704384660452,-866.14,0.00033424,2]
[310154979,1704384660463,-3238.36,0.00033424,2]
[310154981,1704384660472,-597.7,0.00033424,2]
[310154983,1704384660482,-500.0,0.00033424,2]
[310154985,1704384660492,-758.49,0.00033424,2]
[310154987,1704384660501,-861.13,0.00033424,2]
[310154989,1704384660510,-554.04,0.00033424,2]
[310154990,1704384660520,-500.0,0.00033424,2]
[310154991,1704384660529,-500.0,0.00033424,2]
[310154992,1704384660538,-910.85,0.00033424,2]
[310154993,1704384660548,-596.22,0.00033424,2]
[310154994,1704384660557,-647.07,0.00033424,2]
[310154995,1704384660570,-840.62,0.00033424,2]
[310154996,1704384660580,-552.48,0.00033424,2]
[310154997,1704384660589,-957.37,0.00033424,2]
[310154998,1704384660599,-859.39,0.00033424,2]
[310154999,1704384660608,-500.0,0.00033424,2]
[310155000,1704384660618,-1225.89,0.00033424,2]
[310155001,1704384660628,-562.44,0.00033424,2]
[310155002,1704384660638,-765.17,0.00033424,2]
[310155003,1704384660648,-659.69,0.00033424,2]
[310155004,1704384660657,-500.0,0.00033424,2]
[310155006,1704384660667,-500.0,0.00033424,2]
[310155008,1704384660676,-1445.4,0.00033424,2]
[310155010,1704384660685,-704.58,0.00033424,2]
[310155012,1704384660694,-500.0,0.00033424,2]
[310155014,1704384660703,-616.78,0.00033424,2]
[310155016,1704384660712,-500.0,0.00033424,2]
[310155018,1704384660721,-683.51,0.00033424,2]
[310155019,1704384660731,-661.23,0.00033424,2]
[310155020,1704384660740,-529.83,0.00033424,2]
[310155021,1704384660750,-500.0,0.00033424,2]
[310155022,1704384660760,-500.0,0.00033424,2]
[310155023,1704384660771,-500.0,0.00033424,2]
[310155024,1704384660781,-500.0,0.00033424,2]
[310155025,1704384660790,-782.54,0.00033424,2]
[310155026,1704384660800,-588.15,0.00033424,2]
[310155027,1704384660809,-1195.11,0.00033424,2]
[310155028,1704384660820,-674.54,0.00033424,2]
[310155029,1704384660830,-1310.86,0.00033424,2]
[310155030,1704384660841,-831.54,0.00033424,2]
[310155031,1704384660850,-500.0,0.00033424,2]
[310155032,1704384660859,-500.0,0.00033424,2]
[310155033,1704384660870,-500.0,0.00033424,2]
[310155034,1704384660879,-1025.23,0.00033424,2]
[310155035,1704384660888,-785.28,0.00033424,2]
[310155036,1704384660897,-1101.26,0.00033424,2]
[310155037,1704384660908,-705.23,0.00033424,2]
[310155038,1704384660917,-1065.41,0.00033424,2]
[310155039,1704384660926,-500.0,0.00033424,2]
[310155040,1704384660936,-500.0,0.00033424,2]
[310155041,1704384660946,-1054.98,0.00033424,2]
[310155042,1704384660955,-500.0,0.00033424,2]
[310155043,1704384660964,-995.7,0.00033424,2]
[310155044,1704384660974,-744.22,0.00033424,2]
[310155045,1704384660983,-500.0,0.00033424,2]
[310155046,1704384660992,-500.0,0.00033424,2]
[310155047,1704384661002,-1427.22,0.00033424,2]
[310155048,1704384661011,-1238.86,0.00033424,2]
[310155049,1704384661021,-742.23,0.00033424,2]
[310155050,1704384661030,-887.92,0.00033424,2]
[310155051,1704384661040,-500.0,0.00033424,2]
[310155052,1704384661049,-666.3,0.00033424,2]
[310155053,1704384661059,-907.32,0.00033424,2]
[310155054,1704384661069,-500.0,0.00033424,2]
[310155055,1704384661078,-702.86,0.00033424,2]
[310155056,1704384661088,-500.0,0.00033424,2]
[310155057,1704384661096,-528.98682475,0.00033424,2]
[310155058,1704384661106,-500.0,0.00033424,2]
[310155059,1704384661115,-500.0,0.00033424,2]
[310155060,1704384661125,-945.74,0.00033424,2]
[310155061,1704384661134,-920.91,0.00033424,2]
[310155062,1704384661144,-500.0,0.00033424,2]
[310155063,1704384661153,-1400.63,0.00033424,2]
[310155064,1704384661162,-672.89,0.00033424,2]
[310155065,1704384661172,-535.81,0.00033424,2]
[310155066,1704384661181,-500.0,0.00033424,2]
[310155067,1704384661190,-500.0,0.00033424,2]
[310155068,1704384661199,-500.0,0.00033424,2]
[310155069,1704384661208,-500.0,0.00033424,2]
[310155070,1704384661218,-500.0,0.00033424,2]
[310155071,1704384661227,-750.79,0.00033424,2]
[310155072,1704384661237,-1057.28,0.00033424,2]
[310155073,1704384661246,-523.13,0.00033424,2]
[310155074,1704384661255,-500.0,0.00033424,2]
[310155075,1704384661264,-1335.29,0.00033424,2]
[310155076,1704384661274,-500.0,0.00033424,2]
[310155077,1704384661283,-878.66,0.00033424,2]
[310155078,1704384661292,-500.0,0.00033424,2]
[310155079,1704384661302,-1605.48,0.00033424,2]
[310155080,1704384661313,-500.0,0.00033424,2]
[310155081,1704384661323,-500.0,0.00033424,2]
[310155082,1704384661333,-500.0,0.00033424,2]
[310155083,1704384661344,-500.0,0.00033424,2]
[310155084,1704384661358,-1736.22,0.00033424,2]
[310155085,1704384661368,-847.37,0.00033424,2]
[310155086,1704384661378,-500.0,0.00033424,2]
[310155087,1704384661388,-762.22,0.00033424,2]
[310155088,1704384661396,-500.0,0.00033424,2]
[310155089,1704384661406,-500.0,0.00033424,2]
[310155090,1704384661415,-668.67,0.00033424,2]
[310155091,1704384661425,-500.0,0.00033424,2]
[310155092,1704384661436,-1025.7,0.00033424,2]
[310155093,1704384661447,-500.0,0.00033424,2]
[310155094,1704384661457,-500.0,0.00033424,2]
[310155095,1704384661466,-530.17,0.00033424,2]
[310155096,1704384661476,-500.0,0.00033424,2]
[310155097,1704384661486,-500.0,0.00033424,2]
[310155098,1704384661497,-790.72,0.00033424,2]
[310155099,1704384661507,-959.6,0.00033424,2]
[310155100,1704384661516,-500.0,0.00033424,2]
[310155101,1704384661526,-500.0,0.00033424,2]
[310155102,1704384661535,-516.03,0.00033424,2]
[310155103,1704384661544,-500.0,0.00033424,2]
[310155104,1704384661554,-873.69,0.00033424,2]
[310155105,1704384661565,-506.97,0.00033424,2]
[310155106,1704384661575,-500.0,0.00033424,2]
[310155107,1704384661584,-500.0,0.00033424,2]
[310155108,1704384661593,-1032.21,0.00033424,2]
[310155109,1704384661603,-529.99,0.00033424,2]
[310155110,1704384661614,-500.0,0.00033424,2]
[310155111,1704384661627,-917.61,0.00033424,2]
[310155112,1704384661638,-500.0,0.00033424,2]
[310155113,1704384661650,-500.0,0.00033424,2]
[310155114,1704384661660,-500.0,0.00033424,2]
[310155115,1704384661671,-610.7,0.00033424,2]
[310155116,1704384661682,-1220.03,0.00033424,2]
[310155117,1704384661694,-1169.06,0.00033424,2]
[310155118,1704384661705,-1607.98,0.00033424,2]
[310155119,1704384661715,-500.0,0.00033424,2]
[310155120,1704384661728,-500.0,0.00033424,2]
[310155121,1704384661740,-534.36,0.00033424,2]
[310155122,1704384661752,-631.5,0.00033424,2]
[310155123,1704384661761,-1479.9,0.00033424,2]
[310155124,1704384661771,-1507.11,0.00033424,2]
[310155125,1704384661784,-680.74,0.00033424,2]
[310155126,1704384661795,-500.0,0.00033424,2]
[310155127,1704384661805,-500.0,0.00033424,2]
[310155128,1704384661816,-300.0,0.00033424,2]
[310155129,1704384661827,-2169.33,0.00033424,2]
[310155130,1704384661839,-2030.09,0.00033424,2]
[310155131,1704384661850,-500.0,0.00033424,2]
[310155132,1704384661861,-500.0,0.00033424,2]
[310155133,1704384661871,-500.0,0.00033424,2]
[310155134,1704384661881,-500.0,0.00033424,2]
[310155135,1704384661891,-500.0,0.00033424,2]
[310155136,1704384661902,-822.67,0.00033424,2]
[310155137,1704384661913,-500.0,0.00033424,2]
[310155138,1704384661923,-500.0,0.00033424,2]
[310155139,1704384661933,-500.0,0.00033424,2]
[310155140,1704384661943,-3860.65,0.00033424,2]
[310155141,1704384661952,-1227.94,0.00033424,2]
[310155142,1704384661962,-654.78,0.00033424,2]
[310155143,1704384661972,-1694.53,0.00033424,2]
[310155144,1704384661982,-675.26,0.00033424,2]
[310155145,1704384661996,-1024.69,0.00033424,2]
[310155146,1704384662006,-2166.67,0.00033424,2]
[310155147,1704384662016,-500.0,0.00033424,2]
[310155148,1704384662027,-500.0,0.00033424,2]
[310155149,1704384662038,-500.0,0.00033424,2]
[310155150,1704384662050,-644.95,0.00033424,2]
[310155151,1704384662059,-6237.21,0.00033424,2]
[310155152,1704384662073,-2236.13,0.00033424,2]
[310155153,1704384662082,-500.0,0.00033424,2]
[310155154,1704384662092,-500.0,0.00033424,2]
[310155155,1704384662102,-500.0,0.00033424,2]
[310155156,1704384662112,-1565.67,0.00033424,2]
[310155157,1704384662122,-748.67,0.00033424,2]
[310155158,1704384662131,-1806.87,0.00033424,2]
[310155159,1704384662141,-500.0,0.00033424,2]
[310155160,1704384662152,-500.0,0.00033424,2]
[310155161,1704384662162,-500.0,0.00033424,2]
[310155162,1704384662172,-1248.14,0.00033424,2]
[310155163,1704384662182,-500.0,0.00033424,2]
[310155164,1704384662192,-7320.87,0.00033424,2]
[310155165,1704384662202,-500.0,0.00033424,2]
[310155166,1704384662212,-500.0,0.00033424,2]
[310155167,1704384662221,-596.18,0.00033424,2]
[310155168,1704384662232,-351.94861742,0.00033424,2]
[310155169,1704384662242,-629.73,0.00033424,2]
[310155170,1704384662252,-1053.44,0.00033424,2]
[310155171,1704384662264,-712.06,0.00033424,2]
[310155172,1704384662274,-1160.21,0.00033424,2]
[310155173,1704384662285,-583.13,0.00033424,2]
[310155174,1704384662295,-1547.86,0.00033424,2]
[310155175,1704384662306,-11509.81,0.00033424,2]
[310155176,1704384662320,-500.0,0.00033424,2]
[310155177,1704384662329,-4480.87,0.00033424,2]
[310155178,1704384662339,-500.0,0.00033424,2]
[310155179,1704384662351,-9191.26,0.00033424,2]
[310155180,1704384662367,-983.01,0.00033424,2]
[310155181,1704384662376,-500.0,0.00033424,2]
[310155182,1704384662387,-22757.31,0.00033424,2]
[310155183,1704384662397,-1810.3,0.00033424,2]
[310155184,1704384662407,-500.0,0.00033424,2]
[310155185,1704384662418,-500.0,0.00033424,2]
[310155186,1704384662429,-500.0,0.00033424,2]
[310155187,1704384662441,-500.0,0.00033424,2]
[310155188,1704384662452,-1146.84,0.00033424,2]
[310155189,1704384662463,-10482.29,0.00033424,2]
[310155190,1704384662473,-682.62,0.00033424,2]
[310155191,1704384662483,-646.84,0.00033424,2]
[310155192,1704384662493,-500.0,0.00033424,2]
[310155193,1704384662503,-2236.54,0.00033424,2]
[310155194,1704384662513,-5241.12,0.00033424,2]
[310155195,1704384662523,-3000.04,0.00033424,2]
[310155196,1704384662533,-562.73,0.00033424,2]
[310155197,1704384662544,-1267.2,0.00033424,2]
[310155198,1704384662554,-223.54666392,0.00033424,2]
[310155199,1704384662567,-570.19,0.00033424,2]
[310155200,1704384662578,-1044.59,0.00033424,2]
[310155201,1704384662589,-1733.36,0.00033424,2]
[310155202,1704384662600,-506.99,0.00033424,2]
[310155203,1704384662610,-500.0,0.00033424,2]
[310155204,1704384662621,-2344.65,0.00033424,2]
[310155205,1704384662632,-500.0,0.00033424,2]
[310155206,1704384662643,-500.0,0.00033424,2]
[310155207,1704384662654,-500.0,0.00033424,2]
[310155208,1704384662666,-500.0,0.00033424,2]
[310155209,1704384662676,-1148.98,0.00033424,2]
[310155210,1704384662687,-500.0,0.00033424,2]
[310155211,1704384662698,-3957.27,0.00033424,2]
[310155212,1704384662709,-666.95,0.00033424,2]
[310155213,1704384662720,-4906.37,0.00033424,2]
[310155214,1704384662730,-3313.6,0.00033424,2]
[310155215,1704384662741,-781.77,0.00033424,2]
[310155216,1704384662752,-500.0,0.00033424,2]
[310155217,1704384662762,-500.0,0.00033424,2]
[310155218,1704384662774,-500.0,0.00033424,2]
[310155219,1704384662785,-150.0,0.00033424,2]
[310155220,1704384662795,-1046.86,0.00033424,2]
[310155221,1704384662806,-521.63,0.00033424,2]
[310155222,1704384662818,-500.0,0.00033424,2]